bitfinex-derivatives/quotes_SOLF0:USTF0_20250705
["timestamp","ask_amount","ask_price","bid_price","bid_amount"]
[1751744682628,9.83137818,146.81,146.79,196.24]
[1751744682823,8.46834836,146.8,146.79,196.24]
[1751744683728,3.02157818,146.84,146.79,199.26157818]
[1751744683930,20.37720872,146.83,146.8,3.02157818]
[1751744684132,17.9820468,146.82,146.8,3.02157818]
[1751744684331,9.83047818,146.84,146.8,9.83147818]
[1751744684527,20.40088078,146.83,146.8,9.83147818]
[1751744684728,18.00548194,146.82,146.8,9.83147818]
[1751744684930,9.83047818,146.83,146.8,9.83147818]
[1751744685229,18.00548194,146.82,146.8,9.83147818]
[1751744685431,9.83047818,146.83,146.8,9.83147818]
[1751744685624,18.00591926,146.82,146.81,6.8098]
[1751744693237,18.00591926,146.82,146.81,9.83137818]
[1751744693632,18.00591926,146.82,146.81,6.8098]
[1751744693829,18.02855104,146.82,146.81,6.8098]
[1751744694435,20.42943498,146.82,146.81,6.8098]
[1751744696135,20.42943498,146.82,146.81,9.83137818]
[1751744696432,18.02855104,146.82,146.81,9.83137818]
[1751744696637,9.53470946,146.82,146.81,9.83137818]
[1751744696832,9.82937818,146.86,146.83,6.8086]
[1751744697038,20.49231976,146.85,146.84,196.0]
[1751744698437,20.49231976,146.85,146.84,202.8084]
[1751744700136,20.49074313,146.85,146.84,202.8084]
[1751744701943,18.09196176,146.85,146.84,202.8084]
[1751744702239,20.49382555,146.85,146.84,205.82997818]
[1751744702444,18.09196176,146.85,146.84,205.82997818]
[1751744704449,18.09196176,146.85,146.84,202.8084]
[1751744704646,18.09196176,146.85,146.84,205.82997818]
[1751744704947,18.0975841,146.85,146.84,205.82997818]
[1751744705446,13.09442314,146.85,146.84,205.82997818]
[1751744705647,18.12201668,146.85,146.84,205.82997818]
[1751744706237,18.12201668,146.85,146.84,202.8084]
[1751744707243,13.09442314,146.85,146.84,202.8084]
[1751744710144,16.11600132,146.85,146.84,196.0]
[1751744710344,21.1415301,146.85,146.84,196.0]
[1751744711144,21.1415301,146.85,146.82,46.5]
[1751744711145,21.1415301,146.85,146.82,53.3092]
[1751744711450,11.5481939,146.84,146.83,195.82]
[1751744711848,21.16464796,146.84,146.83,195.82]
[1751744713753,16.13934862,146.84,146.83,195.82]
[1751744713952,21.16467085,146.84,146.83,195.82]
[1751744715557,21.16467085,146.84,146.83,202.6289]
[1751744718650,18.14309267,146.84,146.83,202.6289]
[1751744719049,9.61647695,146.84,146.83,202.6289]
[1751744719256,9.82927818,146.86,146.83,202.6289]
[1751744719454,18.11360972,146.85,146.83,202.6289]
[1751744719651,9.82927818,146.86,146.83,202.6289]
[1751744719852,18.11360972,146.85,146.83,202.6289]
[1751744720052,9.82927818,146.86,146.83,202.6289]
[1751744720256,18.11361555,146.85,146.83,202.6289]
[1751744720453,9.82927818,146.86,146.83,202.6289]
[1751744720653,18.114555,146.85,146.83,202.6289]
[1751744720851,9.82927818,146.86,146.83,202.6289]
[1751744721047,18.114555,146.85,146.83,202.6289]
[1751744721255,9.82927818,146.86,146.83,202.6289]
[1751744721455,18.11573116,146.85,146.83,202.6289]
[1751744721655,3.02157818,146.85,146.83,202.6289]
[1751744722257,8.53207719,146.84,146.83,202.6289]
[1751744730460,8.53207719,146.84,146.83,205.65047818]
[1751744735561,8.53207719,146.84,146.83,202.6289]
[1751744735863,8.53207719,146.84,146.83,205.65047818]
[1751744736361,13.11887906,146.84,146.83,205.65047818]
[1751744736556,13.11887906,146.84,146.83,202.6289]
[1751744739466,18.1435615,146.84,146.83,202.6289]
[1751744740766,18.14442216,146.84,146.83,202.6289]
[1751744742873,9.61234497,146.84,146.83,205.65047818]
[1751744743063,12.55255734,146.89,146.86,6.8074]
[1751744743264,20.58294882,146.88,146.87,195.62]
[1751744744265,23.604527,146.88,146.87,195.62]
[1751744744675,30.411427,146.88,146.87,195.62]
[1751744747675,20.58294882,146.88,146.87,202.4271]
[1751744751170,18.1753051,146.88,146.87,202.4271]
[1751744752376,18.1753051,146.88,146.87,205.44867818]
[1751744752673,9.64772611,146.88,146.87,205.44867818]
[1751744752881,9.64772611,146.88,146.87,251.72867818]
[1751744753076,9.53097916,146.92,146.9,6.8055]
[1751744753274,20.67583394,146.91,146.9,202.3855]
[1751744754378,18.2656753,146.91,146.9,202.3855]
[1751744754574,18.2656753,146.91,146.9,205.40707818]
[1751744754781,9.68527435,146.91,146.9,205.40707818]
[1751744755181,6.9306,146.94,146.92,6.8047]
[1751744755182,9.95217818,146.94,146.92,6.8047]
[1751744755389,20.65898887,146.93,146.92,6.8047]
[1751744757689,18.25069615,146.93,146.92,6.8047]
[1751744758291,20.65795894,146.93,146.92,6.8047]
[1751744758486,18.25069615,146.93,146.92,6.8047]
[1751744759389,18.25069615,146.93,146.91,9.82657818]
[1751744759591,13.7345,146.94,146.91,9.82657818]
[1751744759789,18.26989892,146.93,146.91,9.82657818]
[1751744759990,3.02157818,146.93,146.9,195.58]
[1751744760189,18.27064633,146.92,146.9,195.58]
[1751744760385,8.58445771,146.91,146.9,195.58]
[1751744760690,13.20595724,146.91,146.9,195.58]
[1751744761392,8.58445771,146.91,146.9,202.3857]
[1751744761891,9.82607818,146.93,146.9,202.3857]
[1751744762093,18.32784963,146.92,146.9,202.3857]
[1751744762391,9.82607818,146.93,146.9,202.3857]
[1751744762590,13.23616006,146.92,146.9,202.3857]
[1751744762786,9.82607818,146.93,146.9,202.3857]
[1751744763092,13.23584352,146.92,146.9,202.3857]
[1751744763292,9.82607818,146.93,146.9,202.3857]
[1751744763491,13.23564899,146.92,146.9,6.8057]
[1751744763691,9.82607818,146.93,146.9,202.3457]
[1751744764298,13.23401938,146.92,146.9,202.3457]
[1751744764594,9.82607818,146.93,146.9,202.3457]
[1751744764793,13.23324807,146.92,146.9,202.3457]
[1751744764994,9.82607818,146.93,146.9,202.3457]
[1751744765294,8.58191488,146.92,146.9,202.3457]
[1751744765591,9.82607818,146.93,146.9,202.3457]
[1751744765788,13.23219621,146.92,146.9,202.3457]
[1751744765989,9.82607818,146.93,146.9,202.3457]
[1751744766184,13.23219621,146.92,146.9,202.3457]
[1751744766391,9.82607818,146.93,146.9,202.3457]
[1751744766694,13.23121854,146.92,146.9,202.3457]
[1751744766895,9.82607818,146.93,146.9,202.3457]
[1751744767089,8.58066627,146.92,146.9,202.3457]
[1751744767284,9.82607818,146.93,146.9,202.3457]
[1751744767494,6.9306,146.94,146.91,6.8052]
[1751744767495,8.58022375,146.92,146.91,6.8052]
[1751744767696,13.7346,146.94,146.91,9.82677818]
[1751744767892,8.57987674,146.93,146.91,9.82677818]
[1751744768089,6.9306,146.94,146.92,6.8044]
[1751744768591,8.5701823,146.93,146.92,6.8044]
[1751744769794,6.9306,146.94,146.92,6.8044]
[1751744769995,9.95217818,146.94,146.92,6.8044]
[1751744770195,6.9306,146.94,146.92,6.8044]
[1751744770395,8.56873398,146.93,146.91,3.02157818]
[1751744770596,6.9306,146.94,146.91,3.02157818]
[1751744770795,8.56889378,146.93,146.91,3.02157818]
[1751744770995,6.9306,146.94,146.92,6.8045]
[1751744771695,9.95217818,146.94,146.92,6.8045]
[1751744772298,6.9306,146.94,146.92,6.8045]
[1751744772596,16.75607818,146.94,146.91,9.82657818]
[1751744773498,16.75607818,146.94,146.91,6.805]
[1751744773797,16.75607818,146.94,146.91,9.82657818]
[1751744773996,8.57733184,146.93,146.91,9.82657818]
[1751744774196,16.75607818,146.94,146.91,9.82657818]
[1751744774396,8.60411916,146.93,146.91,9.82657818]
[1751744774596,16.75607818,146.94,146.91,9.82657818]
[1751744774796,8.60442624,146.93,146.91,9.82657818]
[1751744775098,16.75607818,146.94,146.91,9.82657818]
[1751744775299,8.60425728,146.93,146.91,9.82657818]
[1751744775499,16.75607818,146.94,146.91,9.82657818]
[1751744775699,8.60465604,146.93,146.91,9.82657818]
[1751744775899,16.75607818,146.94,146.91,9.82657818]
[1751744776095,8.60465604,146.93,146.91,9.82657818]
[1751744776302,16.75607818,146.94,146.91,9.82657818]
[1751744776601,8.60496166,146.93,146.91,9.82657818]
[1751744776900,3.02157818,146.93,146.91,6.805]
[1751744778195,16.75607818,146.94,146.91,9.82657818]
[1751744778401,15.41124964,146.93,146.91,3.02157818]
[1751744778601,6.8044,146.93,146.91,3.02157818]
[1751744778801,11.62842782,146.92,146.9,195.54]
[1751744779004,6.8052,146.91,146.88,9.82787818]
[1751744779295,6.8052,146.91,146.87,46.28]
[1751744779296,3.02157818,146.91,146.87,46.28]
[1751744779502,9.82767818,146.89,146.88,195.8]
[1751744779896,9.82767818,146.89,146.87,242.08]
[1751744780504,3.02157818,146.89,146.87,242.08]
[1751744781400,3.02157818,146.89,146.87,53.0871]
[1751744781604,9.82747818,146.9,146.87,248.8871]
[1751744782708,6.8054,146.91,146.88,6.8066]
[1751744782903,9.82697818,146.91,146.88,9.82817818]
[1751744783405,8.58861264,146.9,146.88,9.82817818]
[1751744783608,9.82697818,146.91,146.89,195.78]
[1751744783805,8.58861264,146.9,146.89,195.78]
[1751744784305,9.82657818,146.92,146.89,202.5861]
[1751744784506,8.59053221,146.91,146.89,202.5861]
[1751744784705,9.82657818,146.92,146.89,202.5861]
[1751744784905,8.59053221,146.91,146.89,202.5861]
[1751744785105,9.82657818,146.92,146.89,202.5861]
[1751744785307,8.59097321,146.91,146.89,202.5861]
[1751744785506,9.82657818,146.92,146.89,202.5861]
[1751744785707,8.59287154,146.91,146.89,202.5861]
[1751744785907,9.82657818,146.92,146.89,202.5861]
[1751744786111,8.59287154,146.91,146.89,202.5861]
[1751744786306,9.82657818,146.92,146.89,202.5861]
[1751744786502,16.46157916,146.94,146.9,6.8055]
[1751744786503,8.59550339,146.91,146.9,6.8055]
[1751744787311,13.26356322,146.91,146.9,6.8055]
[1751744788309,18.35636248,146.91,146.9,6.8055]
[1751744788612,20.76488275,146.91,146.9,6.8055]
[1751744802123,20.76488275,146.91,146.9,9.82707818]
[1751744802422,8.59550339,146.91,146.9,9.82707818]
[1751744805927,13.28181849,146.91,146.9,9.82707818]
[1751744811030,8.59550339,146.91,146.9,9.82707818]
[1751744811831,20.72763338,146.91,146.89,242.1]
[1751744812026,18.3207077,146.9,146.89,242.1]
[1751744812530,8.59550339,146.9,146.89,248.9058]
[1751744812927,8.59550339,146.9,146.89,251.92737818]
[1751744813126,19.48315734,146.94,146.89,245.12157818]
[1751744813328,20.75167753,146.93,146.9,3.02157818]
[1751744813531,18.34509093,146.92,146.9,9.82697818]
[1751744813730,13.27797152,146.91,146.9,9.82697818]
[1751744814331,13.27797152,146.91,146.89,248.9058]
[1751744814536,3.02157818,146.92,146.89,248.9058]
[1751744814735,13.27852818,146.91,146.89,242.1]
[1751744815033,28.17436359,146.9,146.89,46.32]
[1751744815230,28.17436359,146.9,146.89,242.04]
[1751744815536,30.58147515,146.9,146.89,195.72]
[1751744816436,20.75419697,146.9,146.89,195.72]
[1751744816637,23.77577515,146.9,146.89,195.72]
[1751744817236,20.75419697,146.9,146.89,195.72]
[1751744817432,27.55989697,146.9,146.89,195.72]
[1751744817736,20.75419697,146.9,146.89,202.5261]
[1751744817936,20.75419697,146.9,146.89,195.72]
[1751744818138,18.34708541,146.9,146.89,195.72]
[1751744821441,13.69872931,146.9,146.89,195.72]
[1751744821647,18.3023298,146.9,146.89,195.72]
[1751744822150,18.3023298,146.9,146.88,6.8064]
[1751744822445,8.63074792,146.89,146.88,6.8064]
[1751744822646,8.63074792,146.89,146.88,202.4864]
[1751744822848,18.3035484,146.89,146.88,202.4864]
[1751744823242,8.63074792,146.89,146.88,205.50797818]
[1751744824149,3.02157818,146.91,146.89,6.8059]
[1751744824449,13.2405438,146.9,146.89,6.8059]
[1751744826851,18.27285544,146.9,146.89,6.8059]
[1751744829445,13.2405438,146.9,146.89,6.8059]
[1751744835056,18.29831508,146.9,146.89,6.8059]
[1751744836061,13.2405438,146.9,146.89,6.8059]
[1751744838155,18.28607332,146.9,146.89,6.8059]
[1751744842363,18.2814548,146.9,146.89,6.8059]
[1751744845366,18.28189192,146.9,146.89,6.8059]
[1751744845666,18.28189192,146.9,146.88,202.4864]
[1751744845864,8.61222982,146.89,146.88,202.3664]
[1751744846564,18.27753295,146.89,146.88,202.3664]
[1751744846765,18.27765421,146.89,146.88,202.3664]
[1751744847065,13.2357867,146.89,146.88,202.3664]
[1751744848163,18.27743122,146.89,146.88,202.3664]
[1751744848669,18.27743122,146.89,146.88,205.3848574]
[1751744848871,13.2357867,146.89,146.88,205.3848574]
[1751744849165,18.27781031,146.89,146.88,205.3848574]
[1751744849971,4.62355688,146.89,146.88,205.3848574]
[1751744850171,13.28296309,146.89,146.88,202.3664]
[1751744850471,13.28296309,146.89,146.88,205.3848574]
[1751744850672,8.65940621,146.89,146.88,205.3848574]
[1751744851167,13.28357022,146.89,146.88,205.3848574]
[1751744851573,8.65940621,146.89,146.88,205.3848574]
[1751744852371,8.65940621,146.89,146.88,251.6648574]
[1751744853275,3.0184574,146.92,146.9,6.8055]
[1751744853571,20.7457434,146.91,146.9,6.8055]
[1751744854474,18.33803992,146.91,146.9,6.8055]
[1751744855375,20.74599209,146.91,146.9,6.8055]
[1751744855670,20.74701616,146.91,146.89,6.8059]
[1751744855873,13.29578671,146.9,146.89,6.8059]
[1751744856063,18.33973654,146.9,146.89,6.8059]
[1751744857168,18.3408055,146.9,146.89,6.8059]
[1751744860677,18.3408055,146.9,146.89,9.8243574]
[1751744861968,18.3408055,146.9,146.89,6.8059]
[1751744864282,13.29685567,146.9,146.89,6.8059]
[1751744868676,8.67089042,146.9,146.89,9.8243574]
[1751744869578,8.67089042,146.9,146.89,6.8059]
[1751744869783,8.67089042,146.9,146.89,9.8243574]
[1751744870283,9.8229574,146.93,146.9,6.8054]
[1751744870483,20.87317936,146.92,146.91,195.78]
[1751744871885,20.87315232,146.92,146.91,195.78]
[1751744874587,33.57267296,146.92,146.88,242.0]
[1751744874784,3.0184574,146.9,146.88,46.28]
[1751744874977,11.13778146,146.89,146.88,241.96]
[1751744875186,20.87563927,146.89,146.88,241.96]
[1751744875694,20.87563927,146.89,146.88,248.7666]
[1751744876891,20.87563927,146.89,146.88,251.7850574]
[1751744877093,18.44134958,146.89,146.88,251.7850574]
[1751744877292,18.44134958,146.89,146.88,248.7666]
[1751744877483,18.44134958,146.89,146.88,251.7850574]
[1751744878289,8.70349177,146.89,146.88,248.7666]
[1751744878489,18.42664011,146.89,146.88,248.7666]
[1751744880196,13.32954427,146.89,146.88,251.7850574]
[1751744881701,8.70349177,146.89,146.88,251.7850574]
[1751744881999,3.0184574,146.92,146.89,6.8058]
[1751744882199,20.84640794,146.91,146.9,195.64]
[1751744882999,20.84640794,146.91,146.9,202.4456]
[1751744883400,20.8444704,146.91,146.9,202.4456]
[1751744883992,18.41348815,146.91,146.9,202.4456]
[1751744884496,8.69195216,146.91,146.9,202.4456]
[1751744884798,18.39986748,146.91,146.9,202.4456]
[1751744885191,18.39986748,146.91,146.9,205.4640574]
[1751744885495,8.69195216,146.91,146.9,205.4640574]
[1751744887897,4.7069,146.94,146.92,6.8044]
[1751744888097,4.7069,146.94,146.93,196.22]
[1751744888287,25.55234265,146.94,146.93,196.22]
[1751744891798,38.12801886,146.94,146.91,196.28]
[1751744891999,23.86390005,146.93,146.91,196.28]
[1751744892200,20.84544265,146.92,146.91,196.28]
[1751744894497,20.8673589,146.92,146.91,196.28]
[1751744895799,20.8673589,146.92,146.91,203.0852]
[1751744896108,18.43600292,146.92,146.91,203.0852]
[1751744897500,20.86300838,146.92,146.91,203.0852]
[1751744902110,13.28473742,146.92,146.91,203.0852]
[1751744902709,8.68764131,146.92,146.91,203.0852]
[1751744902914,13.28465541,146.92,146.91,203.0852]
[1751744903112,18.35148684,146.92,146.91,203.0852]
[1751744903308,18.35163274,146.92,146.91,203.0852]
[1751744904010,18.35163274,146.92,146.91,196.28]
[1751744906610,20.77846159,146.92,146.91,203.0852]
[1751744906817,18.35163274,146.92,146.91,203.0852]
[1751744908717,18.35163274,146.92,146.91,6.8052]
[1751744909419,18.3517346,146.92,146.91,6.8052]
[1751744910119,18.36456733,146.92,146.91,6.8052]
[1751744912318,13.76730547,146.92,146.91,6.8052]
[1751744912618,13.29765241,146.92,146.91,9.8236574]
[1751744913220,8.70047404,146.92,146.91,9.8236574]
[1751744913414,13.29739215,146.92,146.91,9.8236574]
[1751744914119,13.29739215,146.92,146.91,6.8052]
[1751744914520,8.70047404,146.92,146.91,6.8052]
[1751744914720,13.29731813,146.92,146.91,6.8052]
[1751744915119,8.70047404,146.92,146.91,6.8052]
[1751744915515,13.29721425,146.92,146.91,6.8052]
[1751744920315,18.36422689,146.92,146.91,6.8052]
[1751744920718,18.36422689,146.92,146.9,205.9239574]
[1751744920912,8.70047404,146.91,146.9,205.9239574]
[1751744922823,13.31034414,146.91,146.9,205.9239574]
[1751744923721,8.70047404,146.91,146.9,205.9239574]
[1751744924422,24.08227249,146.94,146.91,6.8049]
[1751744924622,20.81735908,146.93,146.91,6.8049]
[1751744924823,18.39587976,146.92,146.91,6.8049]
[1751744925923,18.39587976,146.92,146.91,9.8233574]
[1751744926322,20.81737706,146.92,146.9,202.9056]
[1751744926621,18.39587976,146.91,146.9,202.9056]
[1751744927226,18.39711237,146.91,146.9,202.9056]
[1751744928524,18.39711237,146.91,146.9,205.9240574]
[1751744929326,18.39711237,146.91,146.9,196.1]
[1751744930024,18.39711237,146.91,146.9,6.8057]
[1751744930221,18.39745834,146.91,146.9,202.7857]
[1751744933825,18.39745834,146.91,146.9,202.8057]
[1751744936426,18.39745834,146.91,146.9,202.8057]
[1751744941728,18.39745834,146.91,146.9,196.0]
[1751744947029,8.70150976,146.91,146.9,196.0]
[1751744947227,18.41050639,146.91,146.9,196.0]
[1751744951430,18.41050639,146.91,146.9,202.8057]
[1751744952528,8.70150976,146.91,146.9,205.8241574]
[1751744952935,2.3718,146.94,146.92,6.8046]
[1751744953235,20.72523459,146.93,146.92,6.8046]
[1751744953430,20.72500654,146.93,146.92,202.7046]
[1751744955937,18.30028673,146.93,146.92,202.7046]
[1751744957338,18.30028673,146.93,146.92,205.7230574]
[1751744957633,18.30028673,146.93,146.92,202.7046]
[1751744960941,18.30028673,146.93,146.92,205.7230574]
[1751744961544,13.21333142,146.93,146.92,205.7230574]
[1751744962045,13.23908211,146.93,146.92,205.7230574]
[1751744963042,8.59334775,146.93,146.92,205.7230574]
[1751744963245,3.0184574,146.95,146.92,205.7230574]
[1751744963544,18.32072695,146.94,146.92,205.7230574]
[1751744963745,9.8218574,146.95,146.92,205.7230574]
[1751744964045,18.32072343,146.94,146.92,205.7230574]
[1751744964249,9.8218574,146.95,146.92,205.7230574]
[1751744964545,18.31839873,146.94,146.92,205.7230574]
[1751744964745,9.8218574,146.95,146.92,205.7230574]
[1751744964947,18.31841042,146.94,146.92,205.7230574]
[1751744965148,9.8218574,146.95,146.93,6.8043]
[1751744965347,18.31628102,146.94,146.93,6.8043]
[1751744966350,18.31628102,146.94,146.92,205.7229574]
[1751744966545,9.8218574,146.95,146.92,205.7229574]
[1751744966746,18.31450222,146.94,146.92,205.7229574]
[1751744967044,9.8218574,146.95,146.92,205.7229574]
[1751744967246,18.313572,146.94,146.92,205.7229574]
[1751744967444,9.8218574,146.95,146.92,205.7229574]
[1751744967641,18.31291488,146.94,146.92,205.7229574]
[1751744967837,9.8218574,146.95,146.92,205.7229574]
[1751744968138,18.3129032,146.94,146.92,205.7229574]
[1751744968341,9.8218574,146.95,146.92,205.7229574]
[1751744968541,18.31151762,146.94,146.92,205.7229574]
[1751744968747,9.8218574,146.95,146.92,205.7229574]
[1751744969048,18.31151177,146.94,146.92,205.7229574]
[1751744969247,9.8218574,146.95,146.92,205.7229574]
[1751744969548,18.31010187,146.94,146.92,205.7229574]
[1751744969748,9.8218574,146.95,146.92,205.7229574]
[1751744969950,18.31009603,146.94,146.92,205.7229574]
[1751744970145,6.8034,146.95,146.92,205.7229574]
[1751744970346,13.2173217,146.94,146.92,205.7229574]
[1751744970545,9.8218574,146.95,146.92,205.7229574]
[1751744970750,13.21733016,146.94,146.92,205.7229574]
[1751744971051,9.8218574,146.95,146.92,205.7229574]
[1751744971250,13.21662335,146.94,146.92,205.7229574]
[1751744971446,9.8218574,146.95,146.92,205.7229574]
[1751744971647,13.22730287,146.94,146.92,205.7229574]
[1751744971849,9.8218574,146.95,146.92,205.7229574]
[1751744972148,13.22729863,146.94,146.92,205.7229574]
[1751744972347,9.8218574,146.95,146.92,205.7229574]
[1751744972548,13.22666083,146.94,146.92,205.7229574]
[1751744972849,9.8218574,146.95,146.92,205.7229574]
[1751744973049,13.22666927,146.94,146.92,202.7045]
[1751744973248,9.8218574,146.95,146.92,202.7045]
[1751744973448,18.32999091,146.94,146.92,202.7045]
[1751744973650,8.57472015,146.93,146.92,202.7045]
[1751744975155,8.57472015,146.93,146.92,205.7229574]
[1751744976855,9.8218574,146.95,146.92,205.7229574]
[1751744977050,13.21544819,146.94,146.92,205.7229574]
[1751744977350,9.8218574,146.95,146.92,205.7229574]
[1751744977653,13.21514688,146.94,146.92,205.7229574]
[1751744977854,9.8218574,146.95,146.92,205.7229574]
[1751744978050,13.21515534,146.94,146.92,205.7229574]
[1751744978251,9.8218574,146.95,146.92,205.7229574]
[1751744978555,13.21493438,146.94,146.93,6.8043]
[1751744980556,18.30552529,146.94,146.93,6.8043]
[1751744981959,13.21493438,146.94,146.93,6.8043]
[1751744982959,13.21501424,146.94,146.93,6.8043]
[1751744985757,13.21526585,146.94,146.93,6.8043]
[1751744987461,18.30682837,146.94,146.93,6.8043]
[1751744989860,21.32528577,146.94,146.92,195.9]
[1751744990060,23.74734406,146.93,146.92,195.9]
[1751744991566,30.55164406,146.93,146.92,195.9]
[1751744991765,30.54631959,146.93,146.92,195.9]
[1751744992166,27.52786219,146.93,146.92,195.9]
[1751744993672,18.3015039,146.93,146.92,195.9]
[1751744994663,13.66595293,146.93,146.92,195.9]
[1751744994864,18.30210644,146.93,146.92,195.9]
[1751744995964,20.72498254,146.93,146.92,195.9]
[1751744997469,20.72498254,146.93,146.91,53.1652]
[1751744997667,9.8224574,146.94,146.92,195.64]
[1751744997868,20.73832643,146.93,146.92,195.64]
[1751745000471,16.10034707,146.93,146.92,195.64]
[1751745000673,20.73805422,146.93,146.92,195.64]
[1751745000876,18.31452622,146.93,146.92,195.64]
[1751745002477,13.22475317,146.93,146.92,195.64]
[1751745002675,18.30152862,146.93,146.92,195.64]
[1751745003484,18.30152862,146.93,146.92,202.4448]
[1751745004180,18.30152862,146.93,146.92,195.64]
[1751745004680,21.31998602,146.93,146.91,46.36]
[1751745004977,20.71377898,146.92,146.91,46.36]
[1751745005178,18.29209803,146.92,146.91,242.0]
[1751745005570,18.29148569,146.92,146.91,242.0]
[1751745005772,18.29148569,146.92,146.91,46.36]
[1751745005972,18.29148569,146.92,146.91,242.0]
[1751745006478,8.58704602,146.92,146.91,248.8052]
[1751745008381,8.58704602,146.92,146.91,251.8236574]
[1751745012984,13.23516899,146.92,146.91,251.8236574]
[1751745013279,18.33737929,146.92,146.91,242.0]
[1751745013784,20.75601593,146.92,146.91,242.0]
[1751745014681,20.75601593,146.92,146.91,46.36]
[1751745014980,23.77447333,146.92,146.91,242.0]
[1751745015177,28.16063669,146.92,146.91,242.0]
[1751745015375,28.16063669,146.92,146.89,6.806]
[1751745015577,18.32437591,146.91,146.9,195.64]
[1751745015978,20.04046899,146.91,146.89,6.806]
[1751745016182,8.58704602,146.9,146.89,6.806]
[1751745016384,18.32462838,146.9,146.89,202.446]
[1751745016884,18.32462838,146.9,146.89,195.64]
[1751745017085,18.32462838,146.9,146.87,46.32]
[1751745017383,9.8250574,146.88,146.87,46.32]
[1751745017592,21.33036861,146.88,146.83,637.0784574]
[1751745017784,3.0184574,146.84,146.83,46.32]
[1751745017985,11.60550342,146.84,146.83,46.32]
[1751745018182,3.0184574,146.84,146.83,248.7687]
[1751745020193,3.0184574,146.84,146.83,53.1287]
[1751745020391,3.0184574,146.84,146.83,248.8087]
[1751745021891,3.0184574,146.84,146.83,46.32]
[1751745022090,3.0184574,146.84,146.83,195.68]
[1751745022490,3.0184574,146.84,146.79,46.32]
[1751745022693,3.0184574,146.81,146.8,195.68]
[1751745022993,3.0184574,146.81,146.8,195.7]
[1751745023594,3.0184574,146.81,146.79,46.32]
[1751745023794,3.0184574,146.81,146.8,195.7]
[1751745024195,3.0184574,146.82,146.81,6.8098]
[1751745025297,3.0184574,146.82,146.8,202.5102]
[1751745025502,3.0184574,146.81,146.8,202.5102]
[1751745026596,3.0184574,146.82,146.8,202.5102]
[1751745026799,3.0184574,146.82,146.81,6.8099]
[1751745028791,3.0184574,146.84,146.82,6.8094]
[1751745029097,3.0184574,146.84,146.83,195.8]
[1751745029690,3.0184574,146.85,146.83,195.8]
[1751745030400,2.4181,146.86,146.83,195.8]
[1751745030693,3.0184574,146.86,146.84,6.8081]
[1751745032496,3.0184574,146.86,146.83,202.6088]
[1751745032800,6.8072,146.87,146.83,202.6088]
[1751745032999,3.0184574,146.86,146.83,205.6272574]
[1751745033401,3.0184574,146.86,146.83,202.6088]
[1751745033902,3.0184574,146.86,146.84,6.8084]
[1751745035005,6.8072,146.87,146.84,6.8084]
[1751745035301,3.0184574,146.86,146.84,6.8084]
[1751745035603,6.8072,146.87,146.84,6.8084]
[1751745035804,3.0184574,146.86,146.84,6.8084]
[1751745038504,6.8072,146.87,146.84,6.8084]
[1751745038705,3.0184574,146.86,146.84,6.8084]
[1751745039009,6.8072,146.87,146.84,6.8084]
[1751745039210,3.0184574,146.86,146.84,6.8084]
[1751745040008,9.8260574,146.86,146.83,198.8184574]
[1751745040209,9.8260574,146.86,146.83,195.8]
[1751745041509,3.0184574,146.86,146.84,6.8084]
[1751745041904,6.8072,146.87,146.84,6.8084]
[1751745042105,9.8256574,146.87,146.84,6.8084]
[1751745042609,46.34,146.89,146.84,3.0184574]
[1751745042812,3.0184574,146.89,146.86,3.0184574]
[1751745043110,5.2770574,146.9,146.86,3.0184574]
[1751745043510,12.0827574,146.9,146.87,6.8068]
[1751745044011,9.0643,146.9,146.87,6.8068]
[1751745044202,12.0827574,146.9,146.87,6.8068]
[1751745044401,9.0643,146.9,146.87,6.8068]
[1751745044606,12.0827574,146.9,146.87,6.8068]
[1751745048105,46.34,146.93,146.87,6.8068]
[1751745048106,9.8238574,146.91,146.88,6.8064]
[1751745048305,6.8054,146.91,146.88,9.8248574]
[1751745054421,6.8054,146.91,146.89,6.8061]
[1751745055226,9.8234574,146.92,146.89,6.8061]
[1751745055425,4.699,146.94,146.9,3.0184574]
[1751745055625,9.63203014,146.93,146.9,3.0184574]
[1751745055918,9.8224574,146.94,146.9,3.0184574]
[1751745056128,9.63203014,146.93,146.91,6.8049]
[1751745056319,4.60079825,146.92,146.91,6.8049]
[1751745056519,9.8224574,146.94,146.91,6.8049]